[Event "Late-Titled-Tuesday-Blitz-April-23-2024"]
[Site "Chess.com"]
[Date "2024.04.23"]
[Round "2"]
[White "N_I_Chess"]
[Black "slorovel"]
[Result "0-1"]
[WhiteElo "2368"]
[BlackElo "2553"]
[TimeControl "180+1"]
[EndTime "14:19:17 PDT"]
[Termination "slorovel won on time"]

1. d4 {[%clk 0:03:00.9]} 1... e6 {[%clk 0:02:57.7]} 2. c4 {[%clk 0:02:58.7]}
2... d5 {[%clk 0:02:55.9]} 3. Nc3 {[%clk 0:02:57.6]} 3... Be7 {[%clk 0:02:49.4]}
4. cxd5 {[%clk 0:02:55.3]} 4... exd5 {[%clk 0:02:49.1]} 5. Qc2 {[%clk
0:02:55.7]} 5... Nf6 {[%clk 0:02:48.3]} 6. Bg5 {[%clk 0:02:54.4]} 6... O-O
{[%clk 0:02:47.8]} 7. e3 {[%clk 0:02:54.6]} 7... c6 {[%clk 0:02:47.6]} 8. Bd3
{[%clk 0:02:54.2]} 8... h6 {[%clk 0:02:47.8]} 9. Bh4 {[%clk 0:02:53.6]} 9... a5
{[%clk 0:02:48.4]} 10. Nge2 {[%clk 0:02:47.1]} 10... Na6 {[%clk 0:02:48.2]} 11.
Qd2 {[%clk 0:02:35.5]} 11... Re8 {[%clk 0:02:46.1]} 12. O-O {[%clk 0:02:35.1]}
12... b5 {[%clk 0:02:43]} 13. f3 {[%clk 0:02:26.8]} 13... Nc7 {[%clk 0:02:39.5]}
14. Kh1 {[%clk 0:02:21.9]} 14... b4 {[%clk 0:02:32.6]} 15. Na4 {[%clk
0:02:20.7]} 15... Ne6 {[%clk 0:02:32]} 16. Rac1 {[%clk 0:02:16.9]} 16... Bd7
{[%clk 0:02:31]} 17. Bb1 {[%clk 0:02:09.6]} 17... Rc8 {[%clk 0:02:22.5]} 18. Qd3
{[%clk 0:01:46.1]} 18... g6 {[%clk 0:02:22]} 19. Qd2 {[%clk 0:01:41.4]} 19...
Ng7 {[%clk 0:02:19.9]} 20. b3 {[%clk 0:01:29.3]} 20... Bf5 {[%clk 0:02:19.3]}
21. Bd3 {[%clk 0:01:14.4]} 21... Bxd3 {[%clk 0:02:14.5]} 22. Qxd3 {[%clk
0:01:14.4]} 22... Nf5 {[%clk 0:02:14.5]} 23. Bf2 {[%clk 0:01:13.5]} 23... Nd6
{[%clk 0:02:07.1]} 24. Nc5 {[%clk 0:01:08.2]} 24... Nb5 {[%clk 0:02:06.9]} 25.
Ng3 {[%clk 0:00:38.8]} 25... Bf8 {[%clk 0:02:05.6]} 26. e4 {[%clk 0:00:28.9]}
26... dxe4 {[%clk 0:02:05.3]} 27. fxe4 {[%clk 0:00:29.8]} 27... Ng4 {[%clk
0:02:04.6]} 28. Bg1 {[%clk 0:00:29.5]} 28... Qh4 {[%clk 0:01:54.8]} 29. Qf3
{[%clk 0:00:17.7]} 29... Rc7 {[%clk 0:01:46.8]} 30. h3 {[%clk 0:00:16.7]} 30...
h5 {[%clk 0:01:42.8]} 31. e5 {[%clk 0:00:13.5]} 31... Bh6 {[%clk 0:01:39.6]} 32.
Rcd1 {[%clk 0:00:12.9]} 32... Nc3 {[%clk 0:01:29.4]} 33. Rd3 {[%clk 0:00:12.4]}
33... Nd5 {[%clk 0:01:28.6]} 34. Nge4 {[%clk 0:00:10.5]} 34... Rf8 {[%clk
0:01:13.6]} 35. Qg3 {[%clk 0:00:06.6]} 35... Qxg3 {[%clk 0:00:53]} 36. Rxg3
{[%clk 0:00:05.8]} 36... Nge3 {[%clk 0:00:45.3]} 37. Rff3 {[%clk 0:00:02.5]}
37... Nc2 {[%clk 0:00:26.1]} 38. Ng5 {[%clk 0:00:01.8]} 38... Bxg5 {[%clk
0:00:24.1]} 39. Rxg5 {[%clk 0:00:02.1]} 39... a4 {[%clk 0:00:22.9]} 40. e6
{[%clk 0:00:02]} 40... Kg7 {[%clk 0:00:19.9]} 41. exf7 {[%clk 0:00:02.4]} 41...
Re7 {[%clk 0:00:17.6]} 42. Rf1 {[%clk 0:00:01.2]} 42... Rfxf7 {[%clk 0:00:17.3]}
43. Rxf7+ {[%clk 0:00:01.5]} 43... Kxf7 {[%clk 0:00:17.3]} 44. g4 {[%clk
0:00:02.1]} 44... hxg4 {[%clk 0:00:16.2]} 45. Rxg4 {[%clk 0:00:02.2]} 45... axb3
{[%clk 0:00:16.4]} 46. axb3 {[%clk 0:00:01.9]} 46... Re1 {[%clk 0:00:16.6]} 47.
Nd3 {[%clk 0:00:02]} 47... Rd1 {[%clk 0:00:16.1]} 48. Ne5+ {[%clk 0:00:02.5]}
48... Ke6 {[%clk 0:00:15.9]} 49. Rxg6+ {[%clk 0:00:02.8]} 49... Kf5 {[%clk
0:00:16.3]} 50. Rxc6 {[%clk 0:00:02.8]} 50... Nce3 {[%clk 0:00:15.7]} 51. h4
{[%clk 0:00:02.1]} 51... Ng4 {[%clk 0:00:10.2]} 52. h5 {[%clk 0:00:01.7]} 52...
Nf4 {[%clk 0:00:06.3]} 0-1

[Event "Late-Titled-Tuesday-Blitz-April-23-2024"]
[Site "Chess.com"]
[Date "2024.04.23"]
[Round "2"]
[White "GMKrikor"]
[Black "alex1531"]
[Result "1-0"]
[WhiteElo "2889"]
[BlackElo "2515"]
[TimeControl "180+1"]
[EndTime "14:19:21 PDT"]
[Termination "GMKrikor won by resignation"]

1. Nf3 {[%clk 0:03:00.9]} 1... d5 {[%clk 0:02:52.7]} 2. c4 {[%clk 0:03:01]} 2...
c6 {[%clk 0:02:49.4]} 3. d4 {[%clk 0:03:00.9]} 3... Nf6 {[%clk 0:02:44.9]} 4.
Nc3 {[%clk 0:03:01]} 4... dxc4 {[%clk 0:02:29.2]} 5. e4 {[%clk 0:03:00.6]} 5...
b5 {[%clk 0:02:28.1]} 6. Qc2 {[%clk 0:03:01.1]} 6... a5 {[%clk 0:02:12.8]} 7. a4
{[%clk 0:02:44.6]} 7... b4 {[%clk 0:02:02.1]} 8. e5 {[%clk 0:02:44.3]} 8... Nd5
{[%clk 0:02:00.5]} 9. Ne4 {[%clk 0:02:44.3]} 9... e6 {[%clk 0:01:35.9]} 10. Bxc4
{[%clk 0:02:43]} 10... Be7 {[%clk 0:01:36.4]} 11. O-O {[%clk 0:02:42.7]} 11...
h6 {[%clk 0:01:36.4]} 12. Bd2 {[%clk 0:02:38.7]} 12... O-O {[%clk 0:01:25.8]}
13. Rfd1 {[%clk 0:02:35.9]} 13... Nd7 {[%clk 0:01:26]} 14. Rac1 {[%clk
0:02:34.6]} 14... Bb7 {[%clk 0:01:13.5]} 15. Ne1 {[%clk 0:02:28]} 15... Rc8
{[%clk 0:01:12.9]} 16. Nd3 {[%clk 0:02:28]} 16... c5 {[%clk 0:01:10.6]} 17. dxc5
{[%clk 0:02:20.5]} 17... Nxc5 {[%clk 0:01:09.8]} 18. Ndxc5 {[%clk 0:02:17.3]}
18... Bxc5 {[%clk 0:01:10.7]} 19. Nxc5 {[%clk 0:01:55.6]} 19... Rxc5 {[%clk
0:01:09]} 20. Qb3 {[%clk 0:01:55.9]} 20... Qh4 {[%clk 0:00:51.5]} 21. Bb5 {[%clk
0:01:52.7]} 21... Rxc1 {[%clk 0:00:39.8]} 22. Bxc1 {[%clk 0:01:27.9]} 22... Qe4
{[%clk 0:00:31.9]} 23. Qg3 {[%clk 0:01:23.8]} 23... Kh8 {[%clk 0:00:21]} 24. Bd3
{[%clk 0:00:41.4]} 24... Qd4 {[%clk 0:00:15.3]} 25. Bc2 {[%clk 0:00:29.8]} 25...
Qc4 {[%clk 0:00:15.6]} 26. Bb1 {[%clk 0:00:28]} 26... Rc8 {[%clk 0:00:15.1]} 27.
Bd2 {[%clk 0:00:20.4]} 27... Qe2 {[%clk 0:00:14.4]} 28. Qf3 {[%clk 0:00:15.7]}
28... Qxf3 {[%clk 0:00:13]} 29. gxf3 {[%clk 0:00:16.6]} 29... Nb6 {[%clk
0:00:13.2]} 30. b3 {[%clk 0:00:14.2]} 30... Bxf3 {[%clk 0:00:12.5]} 31. Re1
{[%clk 0:00:14.8]} 31... Bd5 {[%clk 0:00:10.9]} 32. Be3 {[%clk 0:00:15.3]} 32...
Nd7 {[%clk 0:00:10.5]} 33. Rd1 {[%clk 0:00:14.4]} 33... Nxe5 {[%clk 0:00:10.1]}
34. Bb6 {[%clk 0:00:12.8]} 34... Bxb3 {[%clk 0:00:09.3]} 35. Rf1 {[%clk
0:00:13.1]} 35... Bd5 {[%clk 0:00:09.1]} 36. f4 {[%clk 0:00:13.1]} 36... Nf3+
{[%clk 0:00:09.5]} 37. Kf2 {[%clk 0:00:13.6]} 37... Nd2 {[%clk 0:00:10.1]} 38.
Rd1 {[%clk 0:00:11.6]} 38... Ne4+ {[%clk 0:00:09.7]} 39. Ke3 {[%clk 0:00:11.7]}
39... b3 {[%clk 0:00:10]} 40. Bxe4 {[%clk 0:00:11.3]} 40... Bxe4 {[%clk
0:00:08.4]} 41. Kxe4 {[%clk 0:00:11.8]} 41... Rc4+ {[%clk 0:00:08.1]} 42. Ke3
{[%clk 0:00:04.6]} 42... Rxa4 {[%clk 0:00:07.9]} 43. Rb1 {[%clk 0:00:05]} 43...
Ra3 {[%clk 0:00:07.5]} 44. Bc5 {[%clk 0:00:05.5]} 44... Ra2 {[%clk 0:00:06.3]}
45. Rxb3 {[%clk 0:00:05.2]} 45... Rxh2 {[%clk 0:00:06.5]} 46. Rb7 {[%clk
0:00:05.2]} 46... Kg8 {[%clk 0:00:05.7]} 47. Bd4 {[%clk 0:00:05.1]} 47... g5
{[%clk 0:00:04.9]} 48. fxg5 {[%clk 0:00:04.3]} 48... Rh3+ {[%clk 0:00:02.9]} 49.
Ke2 {[%clk 0:00:04.4]} 49... Rh2+ {[%clk 0:00:03.1]} 50. Kf3 {[%clk 0:00:04.5]}
50... Rh4 {[%clk 0:00:02.9]} 51. Bf6 {[%clk 0:00:02.1]} 51... hxg5 {[%clk
0:00:02.7]} 52. Bxg5 {[%clk 0:00:02.7]} 52... Rh5 {[%clk 0:00:02.7]} 53. Kg4
{[%clk 0:00:02.8]} 53... Rh1 {[%clk 0:00:02.8]} 54. Bf6 {[%clk 0:00:02.3]} 54...
Rg1+ {[%clk 0:00:03.4]} 55. Kh3 {[%clk 0:00:02.9]} 55... Kh7 {[%clk 0:00:03.9]}
56. Kh2 {[%clk 0:00:02.9]} 56... Rg6 {[%clk 0:00:03.4]} 57. Bd4 {[%clk
0:00:02.8]} 57... Kg8 {[%clk 0:00:03.3]} 58. Rb8+ {[%clk 0:00:02.6]} 1-0

[Event "Late-Titled-Tuesday-Blitz-April-23-2024"]
[Site "Chess.com"]
[Date "2024.04.23"]
[Round "2"]
[White "venturov"]
[Black "Pig-filth"]
[Result "1-0"]
[WhiteElo "2503"]
[BlackElo "2240"]
[TimeControl "180+1"]
[EndTime "14:19:23 PDT"]
[Termination "venturov won on time"]

1. e4 {[%clk 0:03:00.9]} 1... Nf6 {[%clk 0:02:59.7]} 2. e5 {[%clk 0:02:59.4]}
2... Nd5 {[%clk 0:02:58.6]} 3. d4 {[%clk 0:02:59.4]} 3... d6 {[%clk 0:02:58.3]}
4. c4 {[%clk 0:02:59.1]} 4... Nb6 {[%clk 0:02:58.2]} 5. exd6 {[%clk 0:02:58.9]}
5... cxd6 {[%clk 0:02:59.1]} 6. Nc3 {[%clk 0:02:59.2]} 6... g6 {[%clk
0:02:59.5]} 7. Be3 {[%clk 0:02:59.5]} 7... Bg7 {[%clk 0:03:00.4]} 8. Rc1 {[%clk
0:02:59.9]} 8... O-O {[%clk 0:03:00.1]} 9. b3 {[%clk 0:03:00.4]} 9... e5 {[%clk
0:02:59.9]} 10. d5 {[%clk 0:02:59]} 10... f5 {[%clk 0:02:59.3]} 11. f4 {[%clk
0:02:56.6]} 11... N8d7 {[%clk 0:02:53.5]} 12. Nf3 {[%clk 0:02:54.2]} 12... exf4
{[%clk 0:02:54.1]} 13. Bxf4 {[%clk 0:02:50.9]} 13... Qe7+ {[%clk 0:02:53.6]} 14.
Be2 {[%clk 0:02:50.9]} 14... Ne5 {[%clk 0:02:42.9]} 15. O-O {[%clk 0:02:45.8]}
15... Nbd7 {[%clk 0:02:38.1]} 16. Nb5 {[%clk 0:02:36]} 16... a6 {[%clk
0:02:23.5]} 17. Nc7 {[%clk 0:02:34.1]} 17... Rb8 {[%clk 0:02:24.1]} 18. Ne6
{[%clk 0:02:34.2]} 18... Re8 {[%clk 0:02:24.6]} 19. Re1 {[%clk 0:02:30.5]} 19...
Nc5 {[%clk 0:02:23.4]} 20. Nxg7 {[%clk 0:02:27.1]} 20... Qxg7 {[%clk 0:02:20.8]}
21. Nxe5 {[%clk 0:02:02.3]} 21... dxe5 {[%clk 0:02:18.8]} 22. Be3 {[%clk
0:02:02.8]} 22... Ne4 {[%clk 0:02:17.4]} 23. Bf3 {[%clk 0:01:49]} 23... Bd7
{[%clk 0:02:16.7]} 24. Bxe4 {[%clk 0:01:40.8]} 24... fxe4 {[%clk 0:02:17.6]} 25.
c5 {[%clk 0:01:37]} 25... Rbd8 {[%clk 0:02:09.3]} 26. Qc2 {[%clk 0:01:31]} 26...
Bf5 {[%clk 0:02:08.9]} 27. Red1 {[%clk 0:01:23.8]} 27... Bg4 {[%clk 0:01:50.9]}
28. Rd2 {[%clk 0:01:20.3]} 28... Rf8 {[%clk 0:01:46]} 29. Qxe4 {[%clk
0:01:16.9]} 29... Bf5 {[%clk 0:01:43.1]} 30. Qc4 {[%clk 0:01:17.2]} 30... Kh8
{[%clk 0:01:39.7]} 31. Bg5 {[%clk 0:01:13.5]} 31... Rc8 {[%clk 0:01:38.7]} 32.
c6 {[%clk 0:01:10.4]} 32... h6 {[%clk 0:01:27.2]} 33. Qh4 {[%clk 0:01:04.4]}
33... Kh7 {[%clk 0:01:26.2]} 34. Rc3 {[%clk 0:00:47]} 34... bxc6 {[%clk
0:01:02.4]} 35. d6 {[%clk 0:00:46.5]} 35... Bd7 {[%clk 0:01:00.2]} 36. g4 {[%clk
0:00:40.7]} 36... Rf7 {[%clk 0:00:50.3]} 37. Rh3 {[%clk 0:00:36.3]} 37... Rcf8
{[%clk 0:00:46.7]} 38. Bxh6 {[%clk 0:00:36.2]} 38... Rf1+ {[%clk 0:00:46.1]} 39.
Kg2 {[%clk 0:00:36.7]} 39... g5 {[%clk 0:00:28.9]} 40. Bxg7+ {[%clk 0:00:25.9]}
40... gxh4 {[%clk 0:00:29.8]} 41. Bxf8 {[%clk 0:00:26.2]} 41... Rxf8 {[%clk
0:00:27.8]} 42. Rxh4+ {[%clk 0:00:26.4]} 42... Kg6 {[%clk 0:00:28.7]} 43. h3
{[%clk 0:00:25.6]} 43... e4 {[%clk 0:00:23.7]} 44. Rh5 {[%clk 0:00:23.9]} 44...
Re8 {[%clk 0:00:20.6]} 45. Ra5 {[%clk 0:00:18.8]} 45... e3 {[%clk 0:00:20.3]}
46. Re2 {[%clk 0:00:19.4]} 46... c5 {[%clk 0:00:20.3]} 47. Rxc5 {[%clk
0:00:18.6]} 47... Bb5 {[%clk 0:00:19.7]} 48. Re1 {[%clk 0:00:17.2]} 48... e2
{[%clk 0:00:19.1]} 49. Kf2 {[%clk 0:00:17.8]} 49... Bd3 {[%clk 0:00:19.3]} 50.
Rd5 {[%clk 0:00:14.5]} 50... Bb5 {[%clk 0:00:17.8]} 51. d7 {[%clk 0:00:13.8]}
51... Rd8 {[%clk 0:00:18.2]} 52. a4 {[%clk 0:00:14.1]} 52... Bxd7 {[%clk
0:00:17.4]} 53. Rxe2 {[%clk 0:00:13.3]} 53... Rf8+ {[%clk 0:00:17.7]} 54. Kg3
{[%clk 0:00:13.2]} 54... Bc8 {[%clk 0:00:16]} 55. Rd6+ {[%clk 0:00:13.4]} 55...
Kg5 {[%clk 0:00:16.6]} 56. Re5+ {[%clk 0:00:13.8]} 56... Bf5 {[%clk 0:00:14.9]}
57. Rxf5+ {[%clk 0:00:14.1]} 57... Rxf5 {[%clk 0:00:14.6]} 58. gxf5 {[%clk
0:00:15]} 58... Kxf5 {[%clk 0:00:08.2]} 59. Rxa6 {[%clk 0:00:15]} 1-0

[Event "Late-Titled-Tuesday-Blitz-April-23-2024"]
[Site "Chess.com"]
[Date "2024.04.23"]
[Round "2"]
[White "Nicolik"]
[Black "VladimirBugayev"]
[Result "1-0"]
[WhiteElo "2503"]
[BlackElo "2244"]
[TimeControl "180+1"]
[EndTime "14:19:27 PDT"]
[Termination "Nicolik won on time"]

1. d4 {[%clk 0:03:00.9]} 1... Nf6 {[%clk 0:02:59.2]} 2. Nc3 {[%clk 0:03:01.5]}
2... d5 {[%clk 0:02:58.6]} 3. Bf4 {[%clk 0:03:02.1]} 3... c6 {[%clk 0:02:57.8]}
4. e3 {[%clk 0:03:01.9]} 4... g6 {[%clk 0:02:57.8]} 5. Be2 {[%clk 0:02:59.1]}
5... Bg7 {[%clk 0:02:52.7]} 6. Nf3 {[%clk 0:02:53.9]} 6... Bg4 {[%clk
0:02:52.3]} 7. Ne5 {[%clk 0:02:53.8]} 7... Bxe2 {[%clk 0:02:51.1]} 8. Qxe2
{[%clk 0:02:54.7]} 8... Nfd7 {[%clk 0:02:50.2]} 9. O-O-O {[%clk 0:02:48.6]} 9...
Nxe5 {[%clk 0:02:35.5]} 10. dxe5 {[%clk 0:02:49.5]} 10... e6 {[%clk 0:02:34.7]}
11. e4 {[%clk 0:02:49.6]} 11... a6 {[%clk 0:02:23.1]} 12. h4 {[%clk 0:02:42.4]}
12... h5 {[%clk 0:02:19.1]} 13. g4 {[%clk 0:02:37.2]} 13... Qa5 {[%clk
0:02:11.3]} 14. Rhe1 {[%clk 0:02:07.5]} 14... Nd7 {[%clk 0:01:58.9]} 15. exd5
{[%clk 0:02:07.8]} 15... cxd5 {[%clk 0:01:58.9]} 16. Nxd5 {[%clk 0:02:04.9]}
16... exd5 {[%clk 0:01:41.1]} 17. e6 {[%clk 0:02:04.9]} 17... O-O {[%clk
0:01:41.4]} 18. exd7 {[%clk 0:02:01.5]} 18... Qxa2 {[%clk 0:01:41.3]} 19. Be5
{[%clk 0:01:59.5]} 19... Bxe5 {[%clk 0:01:35.4]} 20. Qxe5 {[%clk 0:02:00.4]}
20... Qa1+ {[%clk 0:01:28.6]} 21. Kd2 {[%clk 0:02:00.2]} 21... Qa5+ {[%clk
0:01:28.8]} 22. Kc1 {[%clk 0:01:55]} 22... Qa1+ {[%clk 0:01:28.3]} 23. Kd2
{[%clk 0:01:55.4]} 23... Qa5+ {[%clk 0:01:28.3]} 24. c3 {[%clk 0:01:49]} 24...
hxg4 {[%clk 0:01:17.7]} 25. h5 {[%clk 0:01:47.4]} 25... Qb6 {[%clk 0:01:11.2]}
26. h6 {[%clk 0:01:42.7]} 26... f6 {[%clk 0:01:01.1]} 27. Qxd5+ {[%clk
0:01:01.4]} 27... Kh8 {[%clk 0:00:50.2]} 28. Kc1 {[%clk 0:01:00.5]} 28... Qxf2
{[%clk 0:00:45]} 29. Re7 {[%clk 0:00:52.3]} 29... Qf4+ {[%clk 0:00:44.1]} 30.
Kb1 {[%clk 0:00:52.3]} 30... Qf5+ {[%clk 0:00:39.4]} 31. Qxf5 {[%clk 0:00:45.9]}
31... gxf5 {[%clk 0:00:40.3]} 32. Rd5 {[%clk 0:00:41.5]} 32... f4 {[%clk
0:00:32.2]} 33. Rd4 {[%clk 0:00:32.9]} 33... Rg8 {[%clk 0:00:22.3]} 34. Rxf4
{[%clk 0:00:28.9]} 34... g3 {[%clk 0:00:22.2]} 35. Rf1 {[%clk 0:00:19.5]} 35...
f5 {[%clk 0:00:22.1]} 36. Ka2 {[%clk 0:00:18.1]} 36... g2 {[%clk 0:00:18.8]} 37.
Rg1 {[%clk 0:00:15.5]} 37... f4 {[%clk 0:00:19.4]} 38. Rf7 {[%clk 0:00:15.6]}
38... Rad8 {[%clk 0:00:19.2]} 39. Rxf4 {[%clk 0:00:15.4]} 39... Rxd7 {[%clk
0:00:19.8]} 40. Rf2 {[%clk 0:00:15.6]} 40... Rd6 {[%clk 0:00:19.6]} 41. Rfxg2
{[%clk 0:00:15.5]} 41... Rxg2 {[%clk 0:00:19.2]} 42. Rxg2 {[%clk 0:00:16.4]}
42... Rxh6 {[%clk 0:00:19.5]} 43. Ka3 {[%clk 0:00:16.6]} 43... Rb6 {[%clk
0:00:19.6]} 44. b4 {[%clk 0:00:16.4]} 44... Rc6 {[%clk 0:00:19.6]} 45. Kb3
{[%clk 0:00:16.6]} 45... Kh7 {[%clk 0:00:19.1]} 46. c4 {[%clk 0:00:16.7]} 46...
Rf6 {[%clk 0:00:18.9]} 47. c5 {[%clk 0:00:16.6]} 47... b6 {[%clk 0:00:18.7]} 48.
cxb6 {[%clk 0:00:11.8]} 48... Rxb6 {[%clk 0:00:18.3]} 49. Ka4 {[%clk 0:00:12]}
49... Rf6 {[%clk 0:00:18.2]} 50. Ka5 {[%clk 0:00:12]} 50... Rc6 {[%clk
0:00:16.1]} 51. Rg5 {[%clk 0:00:12.1]} 51... Kh8 {[%clk 0:00:15.6]} 52. Rc5
{[%clk 0:00:11.3]} 52... Rd6 {[%clk 0:00:15.6]} 53. Rc7 {[%clk 0:00:09.7]} 53...
Kg8 {[%clk 0:00:14.7]} 54. Ra7 {[%clk 0:00:10]} 54... Kf8 {[%clk 0:00:14.4]} 55.
Rxa6 {[%clk 0:00:10.6]} 55... Rd1 {[%clk 0:00:14.4]} 56. Kb6 {[%clk 0:00:09.3]}
56... Ke8 {[%clk 0:00:13.9]} 57. Ra8+ {[%clk 0:00:09]} 57... Kd7 {[%clk
0:00:14]} 58. b5 {[%clk 0:00:09.7]} 58... Rc1 {[%clk 0:00:12.9]} 59. Rh8 {[%clk
0:00:09.3]} 59... Rb1 {[%clk 0:00:12.5]} 60. Ka6 {[%clk 0:00:08.7]} 60... Ra1+
{[%clk 0:00:12.1]} 61. Kb7 {[%clk 0:00:09.1]} 61... Rb1 {[%clk 0:00:12.1]} 62.
b6 {[%clk 0:00:09.5]} 62... Rb2 {[%clk 0:00:12.1]} 63. Ka7 {[%clk 0:00:09.6]}
63... Ra2+ {[%clk 0:00:12]} 64. Kb8 {[%clk 0:00:10.2]} 64... Rb2 {[%clk
0:00:09.2]} 65. b7 {[%clk 0:00:10.8]} 65... Rb1 {[%clk 0:00:09.2]} 66. Rh4
{[%clk 0:00:10.9]} 66... Rd1 {[%clk 0:00:07.3]} 67. Ra4 {[%clk 0:00:09.1]} 1-0

[Event "Late-Titled-Tuesday-Blitz-April-23-2024"]
[Site "Chess.com"]
[Date "2024.04.23"]
[Round "2"]
[White "GMG"]
[Black "ImportedItalianMaple"]
[Result "1-0"]
[WhiteElo "2776"]
[BlackElo "2468"]
[TimeControl "180+1"]
[EndTime "14:19:29 PDT"]
[Termination "GMG won by resignation"]

1. Nf3 {[%clk 0:03:00.9]} 1... g6 {[%clk 0:03:00.2]} 2. d4 {[%clk 0:03:00.7]}
2... Bg7 {[%clk 0:03:00.6]} 3. e4 {[%clk 0:03:00.9]} 3... d6 {[%clk 0:03:00]} 4.
Bc4 {[%clk 0:03:01.4]} 4... a6 {[%clk 0:02:58.5]} 5. O-O {[%clk 0:02:56.9]} 5...
b5 {[%clk 0:02:57.3]} 6. Bb3 {[%clk 0:02:57.1]} 6... Bb7 {[%clk 0:02:57.9]} 7.
Qe2 {[%clk 0:02:53.4]} 7... c5 {[%clk 0:02:51.3]} 8. c3 {[%clk 0:02:18.6]} 8...
e6 {[%clk 0:02:42.1]} 9. Rd1 {[%clk 0:02:10.8]} 9... Qc7 {[%clk 0:02:38.1]} 10.
Bf4 {[%clk 0:02:05.7]} 10... e5 {[%clk 0:02:32.9]} 11. Bg3 {[%clk 0:01:50.3]}
11... Ne7 {[%clk 0:02:30.3]} 12. a4 {[%clk 0:01:48.5]} 12... c4 {[%clk
0:02:27.5]} 13. Bc2 {[%clk 0:01:47.5]} 13... O-O {[%clk 0:02:27.5]} 14. Na3
{[%clk 0:01:43.7]} 14... Bc6 {[%clk 0:02:21.1]} 15. axb5 {[%clk 0:01:38.6]}
15... axb5 {[%clk 0:02:20.6]} 16. b3 {[%clk 0:01:38.9]} 16... cxb3 {[%clk
0:02:12.6]} 17. Bxb3 {[%clk 0:01:39.8]} 17... Qb7 {[%clk 0:02:09.8]} 18. dxe5
{[%clk 0:01:34.6]} 18... dxe5 {[%clk 0:02:09.9]} 19. Bxe5 {[%clk 0:01:27.1]}
19... Bxe4 {[%clk 0:02:07.9]} 20. Bxg7 {[%clk 0:01:26.5]} 20... Bxf3 {[%clk
0:02:04.6]} 21. Qxf3 {[%clk 0:01:22.3]} 21... Qxf3 {[%clk 0:02:03.9]} 22. gxf3
{[%clk 0:01:23.2]} 22... Kxg7 {[%clk 0:02:04.5]} 23. Nxb5 {[%clk 0:01:22.8]}
23... Nbc6 {[%clk 0:02:03]} 24. Rxa8 {[%clk 0:01:13.3]} 24... Rxa8 {[%clk
0:02:02.6]} 25. Nd6 {[%clk 0:01:12.5]} 25... Ne5 {[%clk 0:01:49.2]} 26. f4
{[%clk 0:01:08]} 26... Ra3 {[%clk 0:01:38.7]} 27. fxe5 {[%clk 0:01:01.2]} 27...
Rxb3 {[%clk 0:01:39]} 28. Rd3 {[%clk 0:00:59.4]} 28... f6 {[%clk 0:01:26.4]} 29.
e6 {[%clk 0:00:55.6]} 29... f5 {[%clk 0:01:22.8]} 30. Ne8+ {[%clk 0:00:51.7]}
30... Kf8 {[%clk 0:01:18.5]} 31. Nc7 {[%clk 0:00:29.9]} 31... Kg7 {[%clk
0:01:06]} 32. Re3 {[%clk 0:00:20.6]} 32... Rb7 {[%clk 0:00:57.6]} 33. Ne8+
{[%clk 0:00:20.1]} 33... Kf8 {[%clk 0:00:57.3]} 34. Nd6 {[%clk 0:00:19.8]} 34...
Rb6 {[%clk 0:00:55.6]} 35. Rd3 {[%clk 0:00:18.8]} 35... Kg7 {[%clk 0:00:51.7]}
36. Ne8+ {[%clk 0:00:19]} 36... Kf8 {[%clk 0:00:51.8]} 37. Nc7 {[%clk
0:00:19.2]} 37... Rc6 {[%clk 0:00:48.8]} 38. Rd7 {[%clk 0:00:11.5]} 38... Rxc3
{[%clk 0:00:41]} 39. Kg2 {[%clk 0:00:11.9]} 39... g5 {[%clk 0:00:32]} 40. Rxe7
{[%clk 0:00:07.1]} 40... Kxe7 {[%clk 0:00:25.8]} 41. Nd5+ {[%clk 0:00:07.6]}
41... Kxe6 {[%clk 0:00:26.7]} 42. Nxc3 {[%clk 0:00:08.3]} 42... Ke5 {[%clk
0:00:26.8]} 43. Kf3 {[%clk 0:00:08.1]} 43... h5 {[%clk 0:00:27.3]} 44. Ne2
{[%clk 0:00:04.9]} 44... h4 {[%clk 0:00:26.6]} 45. h3 {[%clk 0:00:04.6]} 45...
Kd5 {[%clk 0:00:24.9]} 46. Nc1 {[%clk 0:00:04.2]} 46... Kd4 {[%clk 0:00:24.4]}
47. Nb3+ {[%clk 0:00:04.5]} 47... Kd5 {[%clk 0:00:24.5]} 48. Na5 {[%clk
0:00:04.5]} 48... Ke5 {[%clk 0:00:21.1]} 49. Nc6+ {[%clk 0:00:04]} 49... Kd5
{[%clk 0:00:21.3]} 50. Ne7+ {[%clk 0:00:04.2]} 50... Ke6 {[%clk 0:00:21.8]} 51.
Nc8 {[%clk 0:00:03.9]} 51... Kd7 {[%clk 0:00:21.6]} 52. Nb6+ {[%clk 0:00:04.1]}
52... Kc6 {[%clk 0:00:21.4]} 53. Nc4 {[%clk 0:00:03.8]} 53... Kd5 {[%clk
0:00:21.6]} 54. Ne3+ {[%clk 0:00:03.9]} 54... Ke5 {[%clk 0:00:22.3]} 55. Ke2
{[%clk 0:00:04.4]} 55... Kf4 {[%clk 0:00:20.7]} 56. Ng2+ {[%clk 0:00:04.6]}
56... Ke4 {[%clk 0:00:20.7]} 57. f3+ {[%clk 0:00:04.7]} 57... Kd4 {[%clk
0:00:21.2]} 58. f4 {[%clk 0:00:04.8]} 58... g4 {[%clk 0:00:19.7]} 59. Nxh4
{[%clk 0:00:04.8]} 59... gxh3 {[%clk 0:00:18.8]} 60. Kf3 {[%clk 0:00:04.8]}
60... h2 {[%clk 0:00:18.8]} 61. Kg2 {[%clk 0:00:04.8]} 61... Ke4 {[%clk
0:00:13]} 62. Ng6 {[%clk 0:00:05]} 62... Ke3 {[%clk 0:00:12.6]} 63. Kxh2 {[%clk
0:00:05]} 63... Kf3 {[%clk 0:00:13.5]} 64. Kh3 {[%clk 0:00:05.5]} 64... Ke4
{[%clk 0:00:13.7]} 65. Kh4 {[%clk 0:00:06.1]} 65... Kf3 {[%clk 0:00:14.6]} 66.
Kg5 {[%clk 0:00:07]} 66... Ke4 {[%clk 0:00:15.1]} 67. Nh4 {[%clk 0:00:07.3]} 1-0